Workbook

Sheet Кэфы
B4: До следующего обновления цен на рыбу осталось: | E4: =HOUR(TEXT(IF(TEXT(MID(INDEX(Выгрузка!$A:$A,MATCH("Последнее изменение цен было в *",Выгрузка!$A:$A,0),1),32,5)*1+5/24,"ч:мм")*1-(NOW()-TODAY())<0, TEXT(MID(INDEX(Выгрузка!$A:$A,MATCH("Последнее изменение цен было в *",Выгрузка!$A:$A,0),1),32,5)*1+5/24,"ч:мм")*1-(NOW()-TODAY())+1,TEXT(MID(INDEX(Выгрузка!$A:$A,MATCH("Последнее изменение цен было в *",Выгрузка!$A:$A,0),1),32,5)*1+5/24,"ч:мм")*1-(NOW()-TODAY())),"ч:мм"))&"ч "&MINUTE(TEXT(IF(TEXT(MID(INDEX(Выгрузка!$A:$A,MATCH("Последнее изменение цен было в *",Выгрузка!$A:$A,0),1),32,5)*1+5/24,"ч:мм")*1-(NOW()-TODAY())<0, TEXT(MID(INDEX(Выгрузка!$A:$A,MATCH("Последнее изменение цен было в *",Выгрузка!$A:$A,0),1),32,5)*1+5/24,"ч:мм")*1-(NOW()-TODAY())+1,TEXT(MID(INDEX(Выгрузка!$A:$A,MATCH("Последнее изменение цен было в *",Выгрузка!$A:$A,0),1),32,5)*1+5/24,"ч:мм")*1-(NOW()-TODAY())),"ч:мм"))&"мин" -> 3ч 19мин | F4: реального времени
B6: Кит | C6: Шт. | D6: Текущий кэф | E6: Макс. кэф | F6: % от макс.*
B7: Кашалот | C7: =INDEX(Вычисления!$1:$1048576,MATCH($B7,Вычисления!$A:$A,0)-2,5) -> 143 | D7: =IF(C7<=10, "Баг с ценой", VLOOKUP(B7,Вычисления!$A:$E,5,0)) -> 1.031936127 | E7: 1.044614911 | F7: =IF(D7="Баг с ценой", "Не продавай!",D7/E7) -> 0.98786272
B8: Кит горбатый | C8: =INDEX(Вычисления!$1:$1048576,MATCH($B8,Вычисления!$A:$A,0)-2,5) -> 61 | D8: =IF(C8<=10, "Баг с ценой", VLOOKUP(B8,Вычисления!$A:$E,5,0)) -> 1.090415323 | E8: 1.096508368 | F8: =IF(D8="Баг с ценой", "Не продавай!",D8/E8) -> 0.9944432297
B9: Кит горбатый-альбинос | C9: =INDEX(Вычисления!$1:$1048576,MATCH($B9,Вычисления!$A:$A,0)-2,5) -> 12 | D9: =IF(C9<=10, "Баг с ценой", VLOOKUP(B9,Вычисления!$A:$E,5,0)) -> 1.731021565 | E9: 1.732207635 | F9: 0.9993152844
B10: Кит синий северный | C10: =INDEX(Вычисления!$1:$1048576,MATCH($B10,Вычисления!$A:$A,0)-2,5) -> 49 | D10: =IF(C10<=10, "Баг с ценой", VLOOKUP(B10,Вычисления!$A:$E,5,0)) -> 1.436674828 | E10: 1.443316915 | F10: 0.9953980398
B11: Кит серый | C11: =INDEX(Вычисления!$1:$1048576,MATCH($B11,Вычисления!$A:$A,0)-2,5) -> 2 | D11: =IF(C11<=10, "Баг с ценой", VLOOKUP(B11,Вычисления!$A:$E,5,0)) -> Баг с ценой | E11: 0.952566527 | F11: Не продавай!
B12: Кит японский | C12: =INDEX(Вычисления!$1:$1048576,MATCH($B12,Вычисления!$A:$A,0)-2,5) -> 11 | D12: =IF(C12<=10, "Баг с ценой", VLOOKUP(B12,Вычисления!$A:$E,5,0)) -> 2.16404846 | E12: 2.165551684 | F12: 0.9993058473
B13: Сейвал или кит ивасевый | C13: =INDEX(Вычисления!$1:$1048576,MATCH($B13,Вычисления!$A:$A,0)-2,5) -> 67 | D13: =IF(C13<=10, "Баг с ценой", VLOOKUP(B13,Вычисления!$A:$E,5,0)) -> 0.612963281 | E13: 0.6138598416 | F13: 0.9985394702
B14: Финвал | C14: =INDEX(Вычисления!$1:$1048576,MATCH($B14,Вычисления!$A:$A,0)-2,5) -> 7011 | D14: =IF(C14<=10, "Баг с ценой", VLOOKUP(B14,Вычисления!$A:$E,5,0)) -> 0.2154220584 | E14: 0.9269614197 | F14: 0.232395927
B16: * Показывает в %, насколько текущая цена велика в сравнении с максимальной известной мне. Условные обозначения в виде стрелок и соответствующие значения описаны под таблицей. Изучи их и прими решение о продаже самостоятельно или в соответствии с рекомендациями.
B21: [98% - 100%] Смело продавай, прекрасная цена
B22: [95% - 98%] Тоже отличная цена, но нередко бывает лучше
B23: [90% - 95%] Средняя цена. Лучше придержи и продай позже
B24: [80% - 90%] Плохая цена. Продавай, только если срочно нужны деньги
B25: Ниже 80% Рыба не в цене. Ни в коем случае не продавай

Sheet Выгрузка с сайта (hidden)
A1: Место: | B1: Рыба: | C1: Рыба:2 | D1: Прогресс: | E1: Продано (шт):
A2: 1 | C2: Калкан черноморский | E2: 0
A3: 2 | C3: Камбала двухцветная | E3: 0
A4: 3 | C4: Акула скульптурная | E4: 0
A5: 4 | C5: Акула шершавая | E5: 0
A6: 5 | C6: Лихия | E6: 0
A7: 6 | C7: Палтус американский | E7: 0
A8: 7 | C8: Австралийский пилонос | E8: 0
A9: 8 | C9: Маллисквама | E9: 0
A10: 9 | C10: Минога сибирская | E10: 0
A11: 10 | C11: Акула сигарная | E11: 0
A12: 11 | C12: Осетр тихоокеанский | E12: 0
A13: 12 | C13: Форель остроголовая | E13: 0
A14: 16 | C14: Акула светлохвостая | E14: 0
A15: 17 | C15: Акула - свинья | E15: 0
A16: 18 | C16: Акула губастая | E16: 0
A17: 19 | C17: Акула острозубая | E17: 0
A18: 20 | C18: Пилонос японский | E18: 0
A19: 21 | C19: Осетр адриатический | E19: 0
A20: 22 | C20: Антимора клюворылая | E20: 0
A21: 23 | C21: Афалина | E21: 0
A22: 24 | C22: Ремнезуб командорский | E22: 0
A23: 25 | C23: Косатка малая | E23: 0
A24: 26 | C24: Рыба луна короткая | E24: 0
A25: 27 | C25: Косаткодельфин | E25: 0
A26: 28 | C26: Манта рифовая | E26: 0
A27: 29 | C27: Рыба-луна овальная | E27: 0
A28: 30 | C28: Группер Малабарский | E28: 0
A29: 31 | C29: Форель Дональдсона | E29: 0
A30: 32 | C30: Хвостокол кольчатый | E30: 0
A31: 33 | C31: Плиотрема | E31: 0
A32: 34 | C32: Сарпа | E32: 0
A33: 35 | C33: Центрина Австралийская | E33: 0
A34: 36 | C34: Осьминог Думбо | E34: 0
A35: 37 | C35: Кит синий альбинос | E35: 0
A36: 38 | C36: Семга Камчатская | E36: 0
A37: 40 | C37: Кижуч озерный | E37: 0
A38: 41 | C38: Лазианциструс | E38: 0
A39: 42 | C39: Носорог пятнистый | E39: 0
A40: 43 | C40: Губка-лира | E40: 0
A41: 44 | C41: Матамата | E41: 0
A42: 45 | C42: Пирарара | E42: 0
A43: 46 | C43: Акула плащеносная | E43: 0
A44: 47 | C44: Жемчужная рыба | E44: 0
A45: 48 | C45: Скат акулохвостый | E45: 0
A46: 49 | C46: Пайара | E46: 0
A47: 50 | C47: Форель апачей | E47: 0
A48: 51 | C48: Алепизавр | E48: 0
A49: 52 | C49: Черный нож | E49: 0
A50: 53 | C50: Скат гладкий | E50: 0
A51: 54 | C51: Кракен | E51: 0
A52: 55 | C52: Пиранья крапчатая | E52: 0
A53: 57 | C53: Клюворыл Шепарда | E53: 0
A54: 58 | C54: Акула Мицукури | E54: 0
A55: 59 | C55: Ремнезуб перуанский | E55: 0
A56: 60 | C56: Рыба-сабля | E56: 0
A57: 61 | C57: Акула эполетовая | E57: 0
A58: 62 | C58: Мешкорот | E58: 0
A59: 63 | C59: Катран вануатский | E59: 0
A60: 64 | C60: Багре хигучи | E60: 0
A61: 65 | C61: Хирург-Ахиллес | E61: 0
A62: 66 | C62: Голец носатый | E62: 0
A63: 67 | C63: Голец узонский | E63: 0
A64: 68 | C64: Мегалодон | E64: 0
A65: 70 | C65: Рыба-ремень, сельдяной король | E65: 0
A66: 71 | C66: Кайман широкомордый | E66: 0
A67: 72 | C67: Кои Асаги | E67: 0
A68: 73 | C68: Галаксия чилийская | E68: 0
A69: 74 | C69: Чешуеед, Плагиотрем чешуеедный | E69: 0
A70: 75 | C70: Акула-домовой | E70: 0
A71: 76 | C71: Акула черная (Далатия) | E71: 0
A72: 77 | C72: Краб-йети | E72: 0
A73: 78 | C73: Акула светящаяся | E73: 0
A74: 79 | C74: Акулеола черная | E74: 0
A75: 81 | C75: Конус дворцовый | E75: 0
A76: 82 | C76: Плоскоголов пятнистый | E76: 0
A77: 84 | C77: Конус Мильн-Эдвардса | E77: 0
A78: 85 | C78: Конус текстильный | E78: 0
A79: 87 | C79: Конус мраморный | E79: 0
A80: 88 | C80: Конус полосатый | E80: 0
A81: 89 | C81: Луциан горбатый | E81: 0
A82: 93 | C82: Скат тэниура лимма | E82: 0
A83: 99 | C83: Акула - квагга | E83: 0
A84: 102 | C84: Шипощёк длинноперый | E84: 0
A85: 103 | C85: Карась морской чернополосый | E85: 0
A86: 106 | C86: Группер красноротый | E86: 0
A87: 107 | C87: Скат-орляк пятнистый | E87: 0
A88: 109 | C88: Удильщик Джонсона | E88: 0
A89: 110 | C89: Аба-аба | E89: 0
A90: 111 | C90: Синодонтис вуалевый | E90: 0
A91: 113 | C91: Линофрина индийская | E91: 0
A92: 114 | C92: Велифер | E92: 0
A93: 115 | C93: Макрурус вооруженный | E93: 0
A94: 116 | C94: Рыба-кабан трехполосая | E94: 0
A95: 118 | C95: Оксимонокант длиннорылый | E95: 0
A96: 120 | C96: Полосатик Омуры | E96: 0
A97: 121 | C97: Каранкс Гебера | E97: 0
A98: 122 | C98: Кит северный гладкий | E98: 0
A99: 123 | C99: Форель Бива | E99: 0
A100: 124 | C100: Кинжалозуб | E100: 0
A101: 125 | C101: Морская свинья обыкновенная | E101: 0
A102: 126 | C102: Эолидия | E102: 0
A103: 127 | C103: Кит южный гладкий | E103: 0
A104: 128 | C104: Каранкс бронзовый | E104: 0
A105: 129 | C105: Вьюн амурский | E105: 0
A106: 130 | C106: Акула мозамбикская бычья | E106: 0
A107: 131 | C107: Менхэден бразильский | E107: 0
A108: 132 | C108: Морская свинья бесперая | E108: 0
A109: 133 | C109: Бэрардиус Бэрда | E109: 0
A110: 134 | C110: Сельдь чёшско-печорская | E110: 0
A111: 135 | C111: Сельдь тихоокеанская | E111: 0
A112: 136 | C112: Сельдь атлантическая | E112: 0
A113: 137 | C113: Сельдь волжская | E113: 0
A114: 138 | C114: Пузанок северокаспийский | E114: 0
A115: 139 | C115: Семапрохилодус | E115: 0
A116: 143 | C116: Акула рифовая | E116: 0
A117: 150 | C117: Кланкулюс | E117: 0
A118: 151 | C118: Граммистес шестиполосый | E118: 0
A119: 152 | C119: Рыба-тряпка | E119: 0
A120: 153 | C120: Чешуйчатник | E120: 0
A121: 156 | C121: Тилозур красноморский | E121: 0
A122: 157 | C122: Конус письменный | E122: 0
A123: 158 | C123: Бычеглаз-хамрур | E123: 0
A124: 159 | C124: Утконос | E124: 0
A125: 160 | C125: Иния | E125: 0
A126: 161 | C126: Колоссома | E126: 0
A127: 162 | C127: Дианема полосатохвостая | E127: 0
A128: 163 | C128: Дискус Хеккеля | E128: 0
A129: 164 | C129: Лепоринус зебровый | E129: 0
A130: 165 | C130: Милеус ленточный | E130: 0
A131: 166 | C131: Милоссома килебрюхая | E131: 0
A132: 167 | C132: Лепоринус Фредерика | E132: 0
A133: 169 | C133: Джакунда | E133: 0
A134: 170 | C134: Акара голубовато-пятнистая | E134: 0
A135: 171 | C135: Акарихтис Хекеля | E135: 0
A136: 172 | C136: Конгер обуд | E136: 0
A137: 173 | C137: Кои Платинум Огон | E137: 0
A138: 174 | C138: Анаконда | E138: 0
A139: 175 | C139: Биара | E139: 0
A140: 176 | C140: Гидромедуза бразильская | E140: 0
A141: 177 | C141: Аравана черная | E141: 0
A142: 178 | C142: Астронотус глаздчатый | E142: 0
A143: 179 | C143: Павлиний окунь ленточный | E143: 0
A144: 180 | C144: Хараки | E144: 0
A145: 181 | C145: Хемиодопсис | E145: 0
A146: 183 | C146: Уару | E146: 0
A147: 184 | C147: Цихлазома мезонаута | E147: 0
A148: 185 | C148: Акула плоскоголовая | E148: 0
A149: 186 | C149: Запрора | E149: 0
A150: 187 | C150: Ящерица каймановая | E150: 0
A151: 188 | C151: Ампуллярия | E151: 0
A152: 190 | C152: Пиракатинга | E152: 0
A153: 192 | C153: Пака | E153: 0
A154: 193 | C154: Пираиба | E154: 0
A155: 194 | C155: Пиранья стройная | E155: 0
A156: 195 | C156: Таедо | E156: 0
A157: 196 | C157: Тамбаку | E157: 0
A158: 197 | C158: Пирапитинга | E158: 0
A159: 198 | C159: Пираруку | E159: 0
A160: 199 | C160: Краб Мраморный | E160: 0
A161: 200 | C161: Офиура полосатая | E161: 0
A162: 201 | C162: Голубая линкия | E162: 0
A163: 202 | C163: Фромия элегантная | E163: 0
A164: 203 | C164: Морская звезда красношипая | E164: 0
A165: 204 | C165: Тасманский краб | E165: 0
A166: 205 | C166: Гимносарда | E166: 0
A167: 207 | C167: Акула узкозубая | E167: 0
A168: 208 | C168: Ангел черноплавничный | E168: 0
A169: 209 | C169: Гребешок коралловый | E169: 0
A170: 211 | C170: Спинорог Розовохвостый | E170: 0
A171: 212 | C171: Спинорог желтомордый | E171: 0
A172: 214 | C172: Черепаха зеленая | E172: 0
A173: 216 | C173: Конус Географический | E173: 0
A174: 218 | C174: Стромбус Королевский | E174: 0
A175: 221 | C175: Скат мозаичный | E175: 0
A176: 223 | C176: Осьминог обыкновенный | E176: 0
A177: 224 | C177: Тунец макрелевый | E177: 0
A178: 226 | C178: Чоп | E178: 0
A179: 228 | C179: Усач Валецкого | E179: 0
A180: 229 | C180: Младица или Лосось дунайский | E180: 0
A181: 231 | C181: Сиган звездчатый | E181: 0
A182: 232 | C182: Кузовок рогатый | E182: 0
A183: 233 | C183: Акула мальгашская | E183: 0
A184: 234 | C184: Голец альпийский | E184: 0
A185: 236 | C185: Логгерхед | E185: 0
A186: 238 | C186: Евдошка европейская | E186: 0
A187: 239 | E187: 0
A188: 240 | E188: 0
A189: 241 | E189: 0
A190: 242 | E190: 0
A191: 243 | E191: 0
A192: 244 | C192: Кои Утсури | E192: 0
A193: 245 | C193: Акула исландская | E193: 0
A194: 246 | E194: 0
A195: 247 | C195: Акула копьезубая | E195: 0
A196: 248 | E196: 0
A197: 249 | C197: Омар норвежский | E197: 0
A198: 250 | C198: Омар европейский | E198: 0
A199: 251 | C199: Осьминог семирукий | E199: 0
A200: 253 | C200: Краб снежный | E200: 0
... 1154 more rows

Sheet Выгрузка (hidden)
A1: Серверы
A2: Вход или регистрация
A3: Войти Регистрация Забыли пароль? Не пришел пароль?
A4: Загрузить
A5: Загрузить игру
A6: Обои на рабочий стол
A7: Новости
A8: Турниры
A9: Регулярные турниры
A10: Big Game Fishing
A11: Рейтинги
A12: Рейтинги игроков
A13: Таблица рекордов
A14: Командный турнирный рейтинг
A15: Командный дуэльный рейтинг
A16: Справочник
A17: Статистика сервера
A18: Цены на рыбу
A19: Список рыбы
A20: Список предметов
A21: Список водоемов
A22: Вопросы и ответы
A23: Мобильная версия
A24: Загрузить игру МРР
A25: Помощь и советы МРР
A26: Таблица рекордов МРР
A27: Цены на рыбу МРР
A28: Карта сервера МРР
A29: Расписание турниров МРР
A30: Рейтинги игроков МРР
A31: Рейтинг команд МРР
A32: Разработка
A33: Сообщество
A34: Форум
A35: Социальные сети
A36: Главная »
A37: Цены на рыбу
A39: Цены на рыбу
A41: Стоимость рыбы меняется каждые 5 реальных часов. Чем больше продают данную рыбу, тем меньше она стоит.
A43: Ниже представлен спрос на рыбу в порядке убывания.
A44: Последнее изменение цен было в 10:43 МСК.
A45: Место: | B45: Рыба: | D45: Прогресс: | E45: Продано (шт):
A46: 1 | C46: Калкан черноморский | E46: 0
A47: 2 | C47: Камбала двухцветная | E47: 0
A48: 3 | C48: Акула скульптурная | E48: 0
A49: 4 | C49: Акула шершавая | E49: 0
A50: 5 | C50: Лихия | E50: 0
A51: 6 | C51: Палтус американский | E51: 0
A52: 7 | C52: Австралийский пилонос | E52: 0
A53: 8 | C53: Маллисквама | E53: 0
A54: 9 | C54: Минога сибирская | E54: 0
A55: 10 | C55: Акула сигарная | E55: 0
A56: 11 | C56: Осетр тихоокеанский | E56: 0
A57: 12 | C57: Форель остроголовая | E57: 0
A58: 13 | C58: Корюшка озерная малоротая | E58: 21
A59: 14 | C59: Нерка карликовая | E59: 22
A60: 15 | C60: Хариус Камчатский | E60: 7
A61: 16 | C61: Акула светлохвостая | E61: 0
A62: 17 | C62: Акула - свинья | E62: 0
A63: 18 | C63: Акула губастая | E63: 0
A64: 19 | C64: Акула острозубая | E64: 0
A65: 20 | C65: Пилонос японский | E65: 0
A66: 21 | C66: Осетр адриатический | E66: 0
A67: 22 | C67: Антимора клюворылая | E67: 0
A68: 23 | C68: Афалина | E68: 0
A69: 24 | C69: Ремнезуб командорский | E69: 0
A70: 25 | C70: Косатка малая | E70: 0
A71: 26 | C71: Рыба луна короткая | E71: 0
A72: 27 | C72: Косаткодельфин | E72: 0
A73: 28 | C73: Манта рифовая | E73: 0
A74: 29 | C74: Рыба-луна овальная | E74: 0
A75: 30 | C75: Группер Малабарский | E75: 0
A76: 31 | C76: Форель Дональдсона | E76: 0
A77: 32 | C77: Хвостокол кольчатый | E77: 0
A78: 33 | C78: Плиотрема | E78: 0
A79: 34 | C79: Сарпа | E79: 0
A80: 35 | C80: Центрина Австралийская | E80: 0
A81: 36 | C81: Осьминог Думбо | E81: 0
A82: 37 | C82: Кит синий альбинос | E82: 0
A83: 38 | C83: Семга Камчатская | E83: 0
A84: 39 | C84: Кит японский | E84: 11
A85: 40 | C85: Кижуч озерный | E85: 0
A86: 41 | C86: Лазианциструс | E86: 0
A87: 42 | C87: Носорог пятнистый | E87: 0
A88: 43 | C88: Губка-лира | E88: 0
A89: 44 | C89: Матамата | E89: 0
A90: 45 | C90: Пирарара | E90: 0
A91: 46 | C91: Акула плащеносная | E91: 0
A92: 47 | C92: Жемчужная рыба | E92: 0
A93: 48 | C93: Скат акулохвостый | E93: 0
A94: 49 | C94: Пайара | E94: 0
A95: 50 | C95: Форель апачей | E95: 0
A96: 51 | C96: Алепизавр | E96: 0
A97: 52 | C97: Черный нож | E97: 0
A98: 53 | C98: Скат гладкий | E98: 0
A99: 54 | C99: Кракен | E99: 0
A100: 55 | C100: Пиранья крапчатая | E100: 0
A101: 56 | C101: Тауматихт Акселя | E101: 1
A102: 57 | C102: Клюворыл Шепарда | E102: 0
A103: 58 | C103: Акула Мицукури | E103: 0
A104: 59 | C104: Ремнезуб перуанский | E104: 0
A105: 60 | C105: Рыба-сабля | E105: 0
A106: 61 | C106: Акула эполетовая | E106: 0
A107: 62 | C107: Мешкорот | E107: 0
A108: 63 | C108: Катран вануатский | E108: 0
A109: 64 | C109: Багре хигучи | E109: 0
A110: 65 | C110: Хирург-Ахиллес | E110: 0
A111: 66 | C111: Голец носатый | E111: 0
A112: 67 | C112: Голец узонский | E112: 0
A113: 68 | C113: Мегалодон | E113: 0
A114: 69 | C114: Голец дальнеозерский | E114: 1
A115: 70 | C115: Рыба-ремень, сельдяной король | E115: 0
A116: 71 | C116: Кайман широкомордый | E116: 0
A117: 72 | C117: Кои Асаги | E117: 0
A118: 73 | C118: Галаксия чилийская | E118: 0
A119: 74 | C119: Чешуеед, Плагиотрем чешуеедный | E119: 0
A120: 75 | C120: Акула-домовой | E120: 0
A121: 76 | C121: Акула черная (Далатия) | E121: 0
A122: 77 | C122: Краб-йети | E122: 0
A123: 78 | C123: Акула светящаяся | E123: 0
A124: 79 | C124: Акулеола черная | E124: 0
A125: 80 | C125: Конус березовый | E125: 1
A126: 81 | C126: Конус дворцовый | E126: 0
A127: 82 | C127: Плоскоголов пятнистый | E127: 0
A128: 83 | C128: Крокодил нильский | E128: 2
A129: 84 | C129: Конус Мильн-Эдвардса | E129: 0
A130: 85 | C130: Конус текстильный | E130: 0
A131: 86 | C131: Вунду | E131: 18
A132: 87 | C132: Конус мраморный | E132: 0
A133: 88 | C133: Конус полосатый | E133: 0
A134: 89 | C134: Луциан горбатый | E134: 0
A135: 90 | C135: Башир | E135: 25
A136: 91 | C136: Ящероголов красный | E136: 5
A137: 92 | C137: Собачка речная | E137: 9
A138: 93 | C138: Скат тэниура лимма | E138: 0
A139: 94 | C139: Шильб полосатый | E139: 33
A140: 95 | C140: Нильский окунь | E140: 7
A141: 96 | C141: Тигровая рыба нильская | E141: 1
A142: 97 | C142: Баяд | E142: 15
A143: 98 | C143: Сом электрический | E143: 11
A144: 99 | C144: Акула - квагга | E144: 0
A145: 100 | C145: Карась-барабан | E145: 2
A146: 101 | C146: Луциан - Бохар | E146: 1
A147: 102 | C147: Шипощёк длинноперый | E147: 0
A148: 103 | C148: Карась морской чернополосый | E148: 0
A149: 104 | C149: Тунец индо-тихоокеанский | E149: 5
A150: 105 | C150: Мурена гигантская | E150: 3
A151: 106 | C151: Группер красноротый | E151: 0
A152: 107 | C152: Скат-орляк пятнистый | E152: 0
A153: 108 | C153: Скат-торпедо электрический | E153: 1
A154: 109 | C154: Удильщик Джонсона | E154: 0
A155: 110 | C155: Аба-аба | E155: 0
A156: 111 | C156: Синодонтис вуалевый | E156: 0
A157: 112 | C157: Горгасия красноморская | E157: 1
A158: 113 | C158: Линофрина индийская | E158: 0
A159: 114 | C159: Велифер | E159: 0
A160: 115 | C160: Макрурус вооруженный | E160: 0
A161: 116 | C161: Рыба-кабан трехполосая | E161: 0
A162: 117 | C162: Группер белоокаймленный | E162: 1
A163: 118 | C163: Оксимонокант длиннорылый | E163: 0
A164: 119 | C164: Тиляпия галилейская | E164: 6
A165: 120 | C165: Полосатик Омуры | E165: 0
A166: 121 | C166: Каранкс Гебера | E166: 0
A167: 122 | C167: Кит северный гладкий | E167: 0
A168: 123 | C168: Форель Бива | E168: 0
A169: 124 | C169: Кинжалозуб | E169: 0
A170: 125 | C170: Морская свинья обыкновенная | E170: 0
A171: 126 | C171: Эолидия | E171: 0
A172: 127 | C172: Кит южный гладкий | E172: 0
A173: 128 | C173: Каранкс бронзовый | E173: 0
A174: 129 | C174: Вьюн амурский | E174: 0
A175: 130 | C175: Акула мозамбикская бычья | E175: 0
A176: 131 | C176: Менхэден бразильский | E176: 0
A177: 132 | C177: Морская свинья бесперая | E177: 0
A178: 133 | C178: Бэрардиус Бэрда | E178: 0
A179: 134 | C179: Сельдь чёшско-печорская | E179: 0
A180: 135 | C180: Сельдь тихоокеанская | E180: 0
A181: 136 | C181: Сельдь атлантическая | E181: 0
A182: 137 | C182: Сельдь волжская | E182: 0
A183: 138 | C183: Пузанок северокаспийский | E183: 0
A184: 139 | C184: Семапрохилодус | E184: 0
A185: 140 | C185: Поллимир Исидора | E185: 8
A186: 141 | C186: Тиляпия Зилля | E186: 20
A187: 142 | C187: Каранг золотой | E187: 19
A188: 143 | C188: Акула рифовая | E188: 0
A189: 144 | C189: Алеста | E189: 9
A190: 145 | C190: Убанги | E190: 1
A191: 146 | C191: Тиляпия нильская | E191: 12
A192: 147 | C192: Цитарина обыкновенная | E192: 15
A193: 148 | C193: Хемихромис-красавец | E193: 24
A194: 149 | C194: Группер таувина | E194: 1
A195: 150 | C195: Кланкулюс | E195: 0
A196: 151 | C196: Граммистес шестиполосый | E196: 0
A197: 152 | C197: Рыба-тряпка | E197: 0
A198: 153 | C198: Чешуйчатник | E198: 0
A199: 154 | C199: Мурджан | E199: 6
A200: 155 | C200: Тунец скумбриевидный | E200: 3
A201: 156 | C201: Тилозур красноморский | E201: 0
A202: 157 | C202: Конус письменный | E202: 0
A203: 158 | C203: Бычеглаз-хамрур | E203: 0
... 1236 more rows

Sheet Вычисления (hidden)
C2: 4291 | D2: 904 | E2: =VLOOKUP(1353,'Выгрузка с сайта'!$A:$E,5,0) -> 7011
C3: 179 | D3: 278 | E3: =VLOOKUP($A$5,'Выгрузка с сайта'!$C:$E,3,0) -> 7011
B4: х | C4: =1 - C3/C2 -> 0.9582847821 | D4: =1 - D3/D2 -> 0.6924778761 | E4: =1 - E3/E2 -> 0
A5: Финвал | B5: у | C5: 0.9036766383 | D5: 0.7127701105 | E5: =E7*E4+E6 -> 0.2154220584
B6: b | C6: =C5-C7*C4 -> 0.2154220584 | D6: =D5-D7*D4 -> 0.2154220584 | E6: =D6 -> 0.2154220584
B7: a | C7: =($C$5-$D$5)/($C$4-$D$4) -> 0.7182150784 | D7: =($C$5-$D$5)/($C$4-$D$4) -> 0.7182150784 | E7: =D7 -> 0.7182150784
C9: 4282 | D9: 4915 | E9: =VLOOKUP(1353,'Выгрузка с сайта'!$A:$E,5,0) -> 7011
C10: 30 | D10: 2819 | E10: =VLOOKUP($A$12,'Выгрузка с сайта'!$C:$E,3,0) -> 61
B11: х | C11: =1 - C10/C9 -> 0.9929939281 | D11: =1 - D10/D9 -> 0.4264496439 | E11: =1 - E10/E9 -> 0.9912993867
A12: Кит Горбатый | B12: у | C12: 1.091846266 | D12: 0.6134320665 | E12: =E14*E11+E13 -> 1.090415323
B13: b | C13: =C12-C14*C11 -> 0.2533197665 | D13: =D12-D14*D11 -> 0.2533197665 | E13: =D13 -> 0.2533197665
B14: a | C14: =($C$12-$D$12)/($C$11-$D$11) -> 0.8444427263 | D14: =($C$12-$D$12)/($C$11-$D$11) -> 0.8444427263 | E14: =D14 -> 0.8444427263
B16: 1289 | C16: 12730 | D16: 4915 | E16: =VLOOKUP(1353,'Выгрузка с сайта'!$A:$E,5,0) -> 7011
C17: 58 | D17: 1143 | E17: =VLOOKUP($A$19,'Выгрузка с сайта'!$C:$E,3,0) -> 49
B18: х | C18: =1 - C17/C16 -> 0.9954438335 | D18: =1 - D17/D16 -> 0.7674465921 | E18: =1 - E17/E16 -> 0.9930109827
A19: Кит синий северный | B19: у | C19: 1.43937801 | D19: 1.186046408 | E19: =E21*E18+E20 -> 1.436674828
B20: b | C20: =C19-C21*C18 -> 0.333323481 | D20: =D19-D21*D18 -> 0.333323481 | E20: =D20 -> 0.333323481
B21: a | C21: =($C$19-$D$19)/($C$18-$D$18) -> 1.111116963 | D21: =($C$19-$D$19)/($C$18-$D$18) -> 1.111116963 | E21: =D21 -> 1.111116963
C23: 4282 | D23: 4915 | E23: =VLOOKUP(1353,'Выгрузка с сайта'!$A:$E,5,0) -> 7011
C24: 151 | D24: 652 | E24: =VLOOKUP($A$26,'Выгрузка с сайта'!$C:$E,3,0) -> 143
B25: х | C25: =1 - C24/C23 -> 0.9647361046 | D25: =1 - D24/D23 -> 0.8673448627 | E25: =1 - E24/E23 -> 0.9796034802
A26: Кашалот | B26: у | C26: 1.019945751 | D26: 0.9414007788 | E26: =E28*E25+E27 -> 1.031936127
B27: b | C27: =C26-C28*C25 -> 0.2418966264 | D27: =D26-D28*D25 -> 0.2418966264 | E27: =D27 -> 0.2418966264
B28: a | C28: =($C$26-$D$26)/($C$25-$D$25) -> 0.8064890708 | D28: =($C$26-$D$26)/($C$25-$D$25) -> 0.8064890708 | E28: =D28 -> 0.8064890708
C30: 12730 | D30: 4915 | E30: =VLOOKUP(1353,'Выгрузка с сайта'!$A:$E,5,0) -> 7011
C31: 52 | D31: 455 | E31: =VLOOKUP($A$33,'Выгрузка с сайта'!$C:$E,3,0) -> 12
B32: х | C32: =1 - C31/C30 -> 0.995915161 | D32: =1 - D31/D30 -> 0.9074262462 | E32: =1 - E31/E30 -> 0.9982884039
A33: Кит горбатый-альбинос | B33: у | C33: 1.727857089 | D33: 1.609866182 | E33: =E35*E32+E34 -> 1.731021565
B34: b | C34: =C33-C35*C32 -> 0.3999062056 | D34: =D33-D35*D32 -> 0.3999062056 | E34: =D34 -> 0.3999062056
B35: a | C35: =($C$33-$D$33)/($C$32-$D$32) -> 1.333397598 | D35: =($C$33-$D$33)/($C$32-$D$32) -> 1.333397598 | E35: =D35 -> 1.333397598
C37: 12730 | D37: 4915 | E37: =VLOOKUP(1353,'Выгрузка с сайта'!$A:$E,5,0) -> 7011
C38: 13 | D38: 16 | E38: =VLOOKUP($A$40,'Выгрузка с сайта'!$C:$E,3,0) -> 2
B39: х | C39: =1 - C38/C37 -> 0.9989787903 | D39: =1 - D38/D37 -> 0.9967446592 | E39: =1 - E38/E37 -> 0.999714734
A40: Кит серый | B40: у | C40: 0.952566527 | D40: 0.950921238 | E40: =E42*E39+E41 -> 0.9531085006
B41: b | C41: =C40-C42*C39 -> 0.2168850573 | D41: =D40-D42*D39 -> 0.2168850573 | E41: =D41 -> 0.2168850573
B42: a | C42: =($C$40-$D$40)/($C$39-$D$39) -> 0.7364335228 | D42: =($C$40-$D$40)/($C$39-$D$39) -> 0.7364335228 | E42: =D42 -> 0.7364335228
C44: 12730 | D44: 4915 | E44: =VLOOKUP(1353,'Выгрузка с сайта'!$A:$E,5,0) -> 7011
C45: 23 | D45: 303 | E45: =VLOOKUP($A$47,'Выгрузка с сайта'!$C:$E,3,0) -> 11
B46: х | C46: =1 - C45/C44 -> 0.9981932443 | D46: =1 - D45/D44 -> 0.9383519837 | E46: =1 - E45/E44 -> 0.9984310369
A47: Кит японский | B47: у | C47: 2.163652124 | D47: 2.063912857 | E47: =E49*E46+E48 -> 2.16404846
B48: b | C48: =C47-C49*C46 -> 0.4999327935 | D48: =D47-D49*D46 -> 0.4999327935 | E48: =D48 -> 0.4999327935
B49: a | C49: =($C$47-$D$47)/($C$46-$D$46) -> 1.666730706 | D49: =($C$47-$D$47)/($C$46-$D$46) -> 1.666730706 | E49: =D49 -> 1.666730706
C51: 12730 | D51: 4915 | E51: =VLOOKUP(1353,'Выгрузка с сайта'!$A:$E,5,0) -> 7011
C52: 199 | D52: 117 | E52: =VLOOKUP($A$54,'Выгрузка с сайта'!$C:$E,3,0) -> 67
B53: х | C53: =1 - C52/C51 -> 0.9843676355 | D53: =1 - D52/D51 -> 0.9761953204 | E53: =1 - E52/E51 -> 0.9904435886
A54: Сейвал или кит ивасевый | B54: у | C54: 0.6100712367 | D54: 0.6061813617 | E54: =E56*E53+E55 -> 0.612963281
B55: b | C55: =C54-C56*C53 -> 0.1415299546 | D55: =D54-D56*D53 -> 0.1415299546 | E55: =D55 -> 0.1415299546
B56: a | C56: =($C$54-$D$54)/($C$53-$D$53) -> 0.4759820063 | D56: =($C$54-$D$54)/($C$53-$D$53) -> 0.4759820063 | E56: =D56 -> 0.4759820063
